bitfinex/quotes_BTCUSD_20250408
["timestamp","ask_amount","ask_price","bid_price","bid_amount"]
[1744113774833,0.012505,79965.0,79964.0,0.0011249]
[1744113774992,0.352505,79966.0,79964.0,0.0011249]
[1744113775194,0.34,79966.0,79964.0,0.0011249]
[1744113775541,0.602614,79965.0,79964.0,0.0001249]
[1744113775775,0.602614,79965.0,79964.0,0.0011249]
[1744113776099,0.602614,79965.0,79964.0,0.0001249]
[1744113776496,0.602614,79965.0,79964.0,0.0011249]
[1744113776954,0.602614,79965.0,79964.0,0.0001249]
[1744113777315,0.602614,79965.0,79964.0,0.0011249]
[1744113778941,0.62591751,79965.0,79964.0,0.0011249]
[1744113779494,0.62591751,79965.0,79964.0,0.0001249]
[1744113779907,0.62691751,79965.0,79964.0,0.0001249]
[1744113780527,0.62991751,79965.0,79964.0,0.0001249]
[1744113781140,0.62591751,79965.0,79964.0,0.0001249]
[1744113781312,0.36330351,79965.0,79964.0,0.0001249]
[1744113781735,0.36530351,79965.0,79964.0,0.0001249]
[1744113781934,0.62791751,79965.0,79964.0,0.0001249]
[1744113782148,0.62591751,79965.0,79964.0,0.0001249]
[1744113782350,0.36930351,79965.0,79964.0,0.0001249]
[1744113782834,0.38580851,79965.0,79964.0,0.0001249]
[1744113783019,0.63591751,79965.0,79964.0,0.0001249]
[1744113783335,0.608614,79965.0,79964.0,0.0001249]
[1744113783450,0.608614,79965.0,79964.0,0.0011249]
[1744113783451,0.615614,79965.0,79964.0,0.0011249]
[1744113783990,0.353,79965.0,79964.0,0.0011249]
[1744113784329,0.013,79965.0,79964.0,0.0136299]
[1744113784534,0.013,79965.0,79964.0,0.70428854]
[1744113784706,0.013,79965.0,79964.0,0.71882939]
[1744113785322,0.013,79965.0,79964.0,0.70428854]
[1744113785532,0.007,79965.0,79964.0,0.70428854]
[1744113785869,0.26148572,79988.0,79982.0,0.012502]
[1744113785992,0.250049,79985.0,79983.0,0.16152]
[1744113786220,0.352502,79984.0,79983.0,0.16152]
[1744113786807,0.262548,79986.0,79971.0,0.16152]
[1744113786808,0.250083,79974.0,79971.0,0.16152]
[1744113787002,0.02339126,79973.0,79971.0,0.16152]
[1744113787426,0.012504,79972.0,79971.0,0.16152]
[1744113787836,0.012504,79972.0,79964.0,0.94189454]
[1744113787837,0.602614,79965.0,79964.0,0.4155249]
[1744113788062,0.012504,79971.0,79964.0,0.4155249]
[1744113788063,0.02339125,79972.0,79970.0,0.012504]
[1744113788287,0.02339125,79986.0,79985.0,0.262548]
[1744113788519,0.250078,79975.0,79971.0,0.43777864]
[1744113788687,0.262591,79972.0,79971.0,0.16152]
[1744113788847,0.02339125,79972.0,79971.0,0.68786564]
[1744113789061,0.02339125,79972.0,79971.0,0.43777864]
[1744113789259,0.012503,79975.0,79971.0,0.43777864]
[1744113789474,0.250087,79973.0,79971.0,0.43777864]
[1744113789708,0.250087,79973.0,79971.0,0.44477864]
[1744113789895,0.262591,79973.0,79971.0,0.16852]
[1744113790093,0.012504,79972.0,79971.0,0.16152]
[1744113790316,0.012504,79972.0,79971.0,0.16452]
[1744113790614,0.03588471,79972.0,79971.0,0.16752]
[1744113790816,0.03588471,79972.0,79971.0,0.16452]
[1744113791049,0.37588471,79972.0,79971.0,0.16452]
[1744113791176,0.37588471,79972.0,79971.0,0.16552]
[1744113791378,0.36338071,79972.0,79971.0,0.16252]
[1744113791999,0.37588471,79972.0,79971.0,0.16252]
[1744113792421,0.37588471,79972.0,79971.0,0.16152]
[1744113792652,0.37688471,79972.0,79971.0,0.16352]
[1744113792914,0.37688471,79972.0,79971.0,0.002]
[1744113793139,0.262594,79971.0,79970.0,0.16152]
[1744113793349,0.602594,79971.0,79970.0,0.16152]
[1744113793661,0.62597471,79971.0,79970.0,0.16152]
[1744113793868,0.37588471,79971.0,79970.0,0.16152]
[1744113795096,0.37588471,79971.0,79970.0,0.16252]
[1744113795301,0.36338071,79971.0,79970.0,0.16252]
[1744113795508,0.37588471,79971.0,79970.0,0.16252]
[1744113797404,0.37588471,79971.0,79970.0,0.001]
[1744113798006,0.602614,79965.0,79964.0,0.0001249]
[1744113798533,0.62599471,79965.0,79964.0,0.0001249]
[1744113799225,0.602623,79962.0,79961.0,9e-07]
[1744113799444,0.602623,79962.0,79933.0,0.57691]
[1744113799445,0.262686,79943.0,79933.0,0.5644]
[1744113799644,0.602686,79943.0,79942.0,0.10844395]
[1744113799875,0.75232535,79943.0,79942.0,0.10844395]
[1744113800093,0.75232535,79943.0,79932.0,0.0003368]
[1744113800094,0.602693,79941.0,79940.0,7.5e-07]
[1744113800340,0.34,79941.0,79940.0,7.5e-07]
[1744113800532,0.352509,79941.0,79940.0,0.00012581]
[1744113800733,0.37588971,79941.0,79940.0,0.00012581]
[1744113802198,0.37588971,79941.0,79940.0,0.00112581]
[1744113803424,0.38088971,79941.0,79940.0,0.00212581]
[1744113804105,0.38088971,79941.0,79940.0,0.00112581]
[1744113804313,0.38588971,79941.0,79940.0,0.00112581]
[1744113805989,0.51214835,79941.0,79940.0,8.1e-07]
[1744113806720,0.01251,79933.0,79932.0,0.0003368]
[1744113806898,0.602719,79933.0,79932.0,0.0003368]
[1744113807069,0.62609971,79933.0,79932.0,0.0003368]
[1744113807867,0.62809971,79933.0,79932.0,0.0003368]
[1744113808268,0.62909971,79933.0,79932.0,0.0003368]
[1744113808885,0.62709971,79933.0,79932.0,0.0003368]
[1744113809198,0.75235835,79933.0,79932.0,0.0003368]
[1744113809405,0.75935835,79933.0,79932.0,0.0003368]
[1744113809815,0.77134474,79933.0,79932.0,0.0003368]
[1744113810006,0.86020596,79933.0,79932.0,8e-07]
[1744113810204,0.602755,79922.0,79921.0,8e-07]
[1744113810429,0.75239435,79922.0,79921.0,8e-07]
[1744113810891,0.602798,79909.0,79908.0,1e-06]
[1744113811070,0.77465664,79909.0,79901.0,0.004]
[1744113811282,0.602804,79907.0,79906.0,0.06662767]
[1744113811536,0.72906264,79907.0,79906.0,0.06662767]
[1744113811780,0.75244335,79907.0,79906.0,0.06662767]
[1744113812357,0.75244335,79907.0,79906.0,0.06704473]
[1744113812765,0.012517,79887.0,79886.0,0.0003368]
[1744113812967,0.60287,79887.0,79886.0,0.0003368]
[1744113814175,0.72912864,79887.0,79886.0,0.0003368]
[1744113814623,0.73012864,79887.0,79886.0,0.0003368]
[1744113814901,0.353517,79887.0,79886.0,0.0003368]
[1744113815488,0.356517,79887.0,79886.0,0.0003368]
[1744113816752,0.344,79887.0,79886.0,0.0128538]
[1744113816957,0.348,79887.0,79886.0,0.0128538]
[1744113817106,0.348,79887.0,79886.0,0.0003368]
[1744113817312,0.598353,79887.0,79886.0,0.0003368]
[1744113817630,0.360517,79887.0,79886.0,0.0003368]
[1744113817792,0.348,79887.0,79886.0,0.2506928]
[1744113817989,0.598353,79887.0,79886.0,0.0003368]
[1744113818188,0.360517,79887.0,79886.0,0.0003368]
[1744113818389,0.61087,79887.0,79886.0,0.0003368]
[1744113819428,0.73712864,79887.0,79886.0,0.0003368]
[1744113819962,0.73712864,79887.0,79886.0,8e-07]
[1744113822701,0.61087,79887.0,79886.0,8e-07]
[1744113823120,0.73712864,79887.0,79886.0,8e-07]
[1744113823815,0.61087,79887.0,79886.0,8e-07]
[1744113824382,0.348,79887.0,79886.0,8e-07]
[1744113824738,0.008,79887.0,79886.0,8e-07]
[1744113825094,0.020517,79887.0,79886.0,8e-07]
[1744113825728,0.360517,79887.0,79886.0,8e-07]
[1744113828890,0.008,79887.0,79886.0,8e-07]
[1744113829472,0.008,79887.0,79886.0,0.0125178]
[1744113829857,0.008,79887.0,79886.0,8e-07]
[1744113830475,0.008,79887.0,79886.0,0.18517644]
[1744113830648,0.012515,79903.0,79896.0,0.012516]
[1744113830858,0.012515,79902.0,79896.0,0.012516]
[1744113830991,0.02329397,79901.0,79896.0,0.175236]
[1744113831414,0.02329397,79900.0,79896.0,0.175236]
[1744113831628,0.34,79897.0,79896.0,0.16272]
[1744113831869,0.352516,79897.0,79896.0,0.16272]
[1744113832049,0.37580997,79897.0,79896.0,0.16272]
[1744113832902,0.60287,79887.0,79886.0,0.00935197]
[1744113833098,0.60287,79887.0,79886.0,8e-07]
[1744113833326,0.62616397,79887.0,79886.0,8e-07]
[1744113833501,0.37581097,79887.0,79886.0,8e-07]
[1744113833862,0.37581097,79887.0,79886.0,0.0094102]
[1744113834072,0.37581097,79887.0,79886.0,8e-07]
[1744113834482,0.37581097,79887.0,79886.0,0.0020008]
[1744113839224,0.37581097,79887.0,79886.0,8e-07]
[1744113839425,0.37981097,79887.0,79886.0,8e-07]
[1744113839934,0.49665077,79887.0,79886.0,8e-07]
[1744113840142,0.50606961,79887.0,79886.0,8e-07]
[1744113840539,0.50906961,79887.0,79886.0,8e-07]
[1744113841877,0.50906961,79887.0,79860.0,0.0003366]
[1744113841878,0.34,79878.0,79860.0,0.0003366]
[1744113842056,0.602983,79853.0,79852.0,5.2e-07]
[1744113842265,0.72924164,79853.0,79852.0,5.2e-07]
[1744113842489,0.75253561,79853.0,79852.0,5.2e-07]
[1744113842713,0.27375397,79853.0,79852.0,5.2e-07]
[1744113842890,0.02329397,79853.0,79852.0,5.2e-07]
[1744113843122,0.02329397,79853.0,79852.0,0.54884516]
[1744113843289,0.03581697,79853.0,79852.0,0.15960052]
[1744113843490,0.02371069,79853.0,79852.0,0.28585916]
[1744113843692,0.03623369,79853.0,79852.0,0.15960052]
[1744113843891,0.03923369,79853.0,79852.0,0.15960052]
[1744113844078,0.37923369,79853.0,79852.0,0.15960052]
[1744113844286,0.37623369,79853.0,79852.0,0.15960052]
[1744113844691,0.37623369,79853.0,79852.0,5.2e-07]
[1744113845315,0.35293972,79853.0,79852.0,5.2e-07]
[1744113846206,0.59213223,79853.0,79852.0,5.2e-07]
[1744113846372,0.47919836,79853.0,79852.0,5.2e-07]
[1744113846728,0.50255461,79853.0,79852.0,5.2e-07]
[1744113847027,0.37929597,79853.0,79852.0,5.2e-07]
[1744113847726,0.37629597,79853.0,79852.0,5.2e-07]
[1744113847884,0.39229597,79853.0,79852.0,5.2e-07]
[1744113848287,0.05229597,79853.0,79852.0,5.2e-07]
[1744113848486,0.03977297,79853.0,79852.0,5.2e-07]
[1744113848708,0.05229597,79853.0,79852.0,5.2e-07]
[1744113849274,0.39229597,79853.0,79852.0,5.2e-07]
[1744113850126,0.38429597,79853.0,79852.0,5.2e-07]
[1744113850382,0.37629597,79853.0,79852.0,5.2e-07]
[1744113850578,0.37829597,79853.0,79852.0,5.2e-07]
[1744113850789,0.38129597,79853.0,79852.0,5.2e-07]
[1744113851184,0.50555461,79853.0,79852.0,5.2e-07]
[1744113851483,0.38029597,79853.0,79852.0,5.2e-07]
[1744113851889,0.38529597,79853.0,79852.0,5.2e-07]
[1744113852088,0.37629597,79853.0,79852.0,5.2e-07]
[1744113852287,0.38429597,79853.0,79852.0,5.2e-07]
[1744113852692,0.51055461,79853.0,79852.0,5.2e-07]
[1744113853455,0.51755461,79853.0,79852.0,5.2e-07]
[1744113853656,0.38429597,79853.0,79852.0,5.2e-07]
[1744113854057,0.39229597,79853.0,79852.0,5.2e-07]
[1744113855135,0.01641672,79853.0,79852.0,5.2e-07]
[1744113855298,0.02893972,79853.0,79852.0,5.2e-07]
[1744113855511,0.36893972,79853.0,79852.0,5.2e-07]
[1744113856495,0.35293972,79853.0,79852.0,5.2e-07]
[1744113856928,0.35793972,79853.0,79852.0,5.2e-07]
[1744113861491,0.00541672,79853.0,79852.0,0.29846216]
[1744113861710,0.00541672,79853.0,79852.0,0.34436216]
[1744113862639,0.00241672,79853.0,79852.0,0.34436216]
[1744113862848,0.00041672,79853.0,79852.0,0.35890301]
[1744113863045,0.00341672,79853.0,79852.0,0.35890301]
[1744113863245,0.00341672,79853.0,79852.0,0.77330301]
[1744113863505,0.34,79882.0,79876.0,0.012519]
[1744113863694,0.44886941,79910.0,79884.0,0.262881]
[1744113863877,0.250285,79909.0,79884.0,0.91338049]
[1744113864072,3e-07,79885.0,79884.0,0.91338049]
[1744113864271,0.012515,79902.0,79895.0,0.15]
[1744113864472,0.262812,79905.0,79897.0,0.012516]
[1744113864693,0.262824,79901.0,79898.0,0.12625864]
[1744113865093,0.250316,79899.0,79898.0,0.12625864]
[1744113865334,0.250316,79899.0,79896.0,0.57408]
[1744113865335,0.262831,79899.0,79896.0,0.57408]
[1744113865544,0.250322,79897.0,79896.0,0.57408]
[1744113865916,0.262838,79897.0,79896.0,0.57408]
[1744113866121,0.262838,79897.0,79896.0,0.4144]
[1744113866443,0.602838,79897.0,79896.0,0.4144]
[1744113867050,0.602876,79885.0,79884.0,0.0001251]
[1744113868609,0.34,79885.0,79884.0,0.0011251]
[1744113868806,0.590359,79885.0,79884.0,0.0011251]
[1744113869032,0.602876,79885.0,79884.0,0.0011251]
[1744113871252,0.72913464,79885.0,79884.0,1e-07]
[1744113871950,0.60292,79872.0,79871.0,0.16028]
[1744113872110,0.60292,79872.0,79871.0,0.16040523]
[1744113873335,0.60592,79872.0,79871.0,0.16040523]
[1744113874164,0.60892,79872.0,79871.0,0.16040523]
[1744113876022,0.62053166,79872.0,79871.0,0.16040523]
[1744113876228,0.60892,79872.0,79871.0,0.16040523]
[1744113879719,0.62080774,79872.0,79871.0,0.16040523]
[1744113882335,0.006,79872.0,79871.0,0.17292523]
[1744113882514,0.01852,79872.0,79871.0,0.16040523]
[1744113883304,0.01552,79872.0,79871.0,0.16040523]
[1744113883525,0.01252,79872.0,79871.0,0.16140523]
[1744113884153,0.01252,79872.0,79871.0,0.00012523]
[1744113884154,0.35252,79872.0,79871.0,0.00012523]
[1744113884349,0.35252,79872.0,79871.0,0.00112523]
[1744113884554,0.34,79872.0,79871.0,0.00112523]
[1744113884791,0.60292,79872.0,79871.0,0.00112523]
[1744113885627,0.34,79873.0,79871.0,0.00112523]
[1744113885832,0.012518,79881.0,79872.0,0.16028]
[1744113886187,0.262909,79876.0,79872.0,0.16028]
[1744113886486,0.012518,79883.0,79873.0,0.012519]
[1744113886702,0.012518,79882.0,79875.0,0.250391]
[1744113886871,0.34,79880.0,79877.0,0.250383]
[1744113887050,0.262875,79886.0,79878.0,0.12625864]
[1744113887051,0.012517,79886.0,79878.0,0.12625864]
[1744113887265,0.250374,79881.0,79878.0,0.12625864]
[1744113887476,0.262892,79881.0,79878.0,0.12625864]
[1744113887678,0.012518,79879.0,79878.0,0.12625864]
[1744113888285,0.013518,79882.0,79878.0,0.12625864]
[1744113888286,0.001,79882.0,79878.0,0.12625864]
[1744113888470,0.001,79882.0,79881.0,0.012518]
[1744113888675,0.001,79882.0,79881.0,0.13877664]
[1744113888923,0.002,79882.0,79881.0,0.13877664]
[1744113889129,0.250331,79895.0,79890.0,0.250343]
[1744113889328,0.250331,79895.0,79888.0,0.250349]
[1744113889329,0.262853,79893.0,79889.0,0.16024]
[1744113889506,0.262861,79890.0,79889.0,0.16024]
[1744113889909,0.262861,79890.0,79879.0,0.012518]
[1744113889910,0.012517,79888.0,79879.0,0.012518]
[1744113890259,0.34,79887.0,79883.0,0.012518]
[1744113890418,0.34,79891.0,79887.0,0.262868]
[1744113890618,0.250359,79886.0,79883.0,0.12625864]
[1744113891521,0.012517,79887.0,79883.0,0.12625864]
[1744113891779,0.352517,79888.0,79883.0,0.12625864]
[1744113891926,0.012517,79886.0,79883.0,0.12625864]
[1744113892452,0.26287,79887.0,79883.0,0.12625864]
[1744113892627,0.34,79888.0,79884.0,0.012518]
[1744113892826,0.012517,79891.0,79890.0,0.250344]
[1744113892827,0.34,79891.0,79890.0,0.250344]
[1744113893032,0.34,79891.0,79888.0,0.262864]
[1744113893033,0.012517,79889.0,79884.0,0.12625864]
[1744113893236,0.012517,79885.0,79884.0,0.12625864]
[1744113893627,0.262872,79887.0,79884.0,0.12625864]
[1744113893822,0.263869,79888.0,79884.0,0.12625864]
[1744113894034,0.262874,79886.0,79884.0,0.12625864]
[1744113894426,0.001,79888.0,79884.0,0.12625864]
[1744113894649,0.001,79888.0,79887.0,0.45937]
[1744113894882,0.001,79888.0,79887.0,0.58562864]
[1744113895100,0.012516,79894.0,79887.0,0.58562864]
[1744113895307,0.012516,79894.0,79889.0,0.262864]
[1744113895527,0.012516,79894.0,79890.0,0.37660064]
[1744113895698,0.34,79898.0,79894.0,0.012516]
[1744113895903,0.262844,79895.0,79890.0,0.12625864]
[1744113896089,0.012516,79896.0,79891.0,0.16024]
[1744113896285,0.26285,79894.0,79891.0,0.28649864]
[1744113897035,0.012516,79892.0,79891.0,0.28649864]
[1744113898191,0.012516,79892.0,79891.0,0.16024]
[1744113898538,0.352516,79892.0,79891.0,0.16124]
[1744113898708,0.012517,79889.0,79885.0,0.16024]
[1744113899034,0.262873,79886.0,79885.0,0.16024]
[1744113899567,0.012518,79883.0,79881.0,0.00946933]
[1744113899704,0.012518,79882.0,79881.0,0.00946933]
[1744113899911,0.262903,79877.0,79876.0,0.15664]
[1744113901652,0.28627794,79877.0,79876.0,0.15664]
[1744113902508,0.62727794,79877.0,79876.0,0.16264]
[1744113903422,0.36437494,79877.0,79876.0,0.175159]
[1744113903770,0.341,79877.0,79876.0,0.175159]
[1744113903989,0.001,79877.0,79876.0,0.175159]
[1744113904194,0.263903,79877.0,79876.0,0.16264]
[1744113905561,0.28728815,79877.0,79876.0,0.16264]
[1744113906491,0.250374,79881.0,79876.0,0.16264]
[1744113906492,0.0001683,79904.0,79898.0,0.412834]
[1744113906693,0.0001683,79904.0,79903.0,0.27735885]
[1744113906891,0.0001683,79904.0,79903.0,0.81801749]
[1744113907895,0.0001683,79904.0,79903.0,0.81814272]
[1744113908738,0.0001683,79904.0,79903.0,0.82775521]
[1744113909187,0.0001683,79916.0,79915.0,0.412778]
[1744113909346,0.0001683,79916.0,79915.0,0.71021749]
[1744113911487,0.0001683,79916.0,79915.0,0.71121749]
[1744113911689,0.2629433,79916.0,79915.0,0.28389864]
[1744113912091,0.2629433,79916.0,79915.0,0.28289864]
[1744113912292,0.0001683,79916.0,79915.0,0.28289864]
[1744113912499,0.0001683,79916.0,79915.0,0.70129864]
[1744113912708,0.0126813,79916.0,79915.0,0.57504]
[1744113913796,0.0001683,79916.0,79915.0,0.57504]
[1744113914140,0.0126813,79916.0,79915.0,0.57504]
[1744113914342,0.0126813,79916.0,79915.0,0.173153]
[1744113914343,0.0001683,79916.0,79915.0,0.173153]
[1744113914543,0.0001683,79916.0,79915.0,0.44941164]
[1744113915151,0.0001683,79916.0,79915.0,0.29941164]
[1744113915352,0.0001683,79916.0,79915.0,0.28689864]
[1744113915792,0.0001683,79916.0,79915.0,0.16064]
[1744113916200,0.0001683,79916.0,79915.0,0.423418]
[1744113916519,0.0001683,79916.0,79915.0,0.16064]
[1744113917074,0.0001683,79916.0,79915.0,0.29941164]
[1744113917280,0.0001683,79916.0,79915.0,0.54967664]
[1744113917478,0.0001683,79916.0,79915.0,0.96407664]
[1744113917655,0.0001683,79916.0,79915.0,0.97861749]
[1744113918048,9e-07,79918.0,79915.0,1.02671749]
[1744113918259,0.0001683,79934.0,79928.0,0.262736]
[1744113918504,0.0001683,79934.0,79928.0,1.80937549]
[1744113919114,0.0001683,79934.0,79928.0,1.53209864]
[1744113919115,0.01251,79932.0,79928.0,1.53209864]
[1744113919444,0.016511,79929.0,79928.0,1.53209864]
[1744113919652,0.00409401,79929.0,79928.0,1.79686449]
[1744113919846,0.00409401,79929.0,79928.0,1.81893158]
[1744113919847,0.00509401,79929.0,79928.0,1.81893158]
[1744113920650,0.0001683,79934.0,79928.0,1.81893158]
[1744113920651,0.0001683,79934.0,79933.0,0.57674149]
[1744113920803,0.00058658,79934.0,79933.0,0.87414098]
[1744113921832,0.00158658,79934.0,79933.0,0.88214098]
[1744113922401,0.00258658,79934.0,79933.0,0.89114098]
[1744113923651,5.8e-07,79934.0,79933.0,0.89114098]
[1744113923815,5.8e-07,79934.0,79933.0,0.94114098]
[1744113925670,5.8e-07,79934.0,79933.0,0.89114098]
[1744113925875,5.8e-07,79934.0,79933.0,0.73454098]
[1744113926080,5.8e-07,79934.0,79933.0,0.87656013]
[1744113926683,5.8e-07,79934.0,79933.0,0.89110098]
[1744113932395,5.8e-07,79934.0,79933.0,0.70749013]
[1744113932633,5.8e-07,79934.0,79933.0,1.86656013]
[1744113933189,5.8e-07,79934.0,79933.0,1.88110098]
[1744113935924,0.250127,79960.0,79933.0,1.88110098]
[1744113935925,8e-07,79959.0,79958.0,0.412637]
[1744113936137,0.0001685,79965.0,79964.0,0.02704585]
[1744113936336,0.0001684,79967.0,79966.0,0.17704585]
[1744113936513,0.0001684,79967.0,79966.0,0.30330449]
[1744113936713,0.0001684,79967.0,79966.0,0.71753598]
[1744113937536,0.0001684,79967.0,79966.0,0.71766121]
[1744113938019,0.0011684,79967.0,79966.0,0.72466121]
[1744113938513,0.0011684,79967.0,79966.0,0.73413776]
[1744113938761,0.0011684,79967.0,79966.0,0.58913776]
[1744113939008,0.0011684,79967.0,79966.0,0.72459691]
[1744113944248,0.0011684,79967.0,79966.0,0.88015691]
[1744113945190,0.0011684,79967.0,79966.0,0.86765191]
[1744113945315,0.0011684,79967.0,79966.0,0.71209191]
[1744113945521,0.0011684,79967.0,79966.0,0.86765191]
[1744113945971,0.0136734,79967.0,79966.0,0.59139327]
[1744113947112,0.0126734,79967.0,79966.0,0.58439327]
[1744113947354,0.0126734,79967.0,79966.0,0.16516178]
[1744113947598,0.3526734,79967.0,79966.0,0.16716178]
[1744113947788,0.3526734,79967.0,79966.0,0.01260178]
[1744113949079,0.37222704,79967.0,79966.0,0.01260178]
[1744113949518,0.37222704,79967.0,79966.0,0.00312523]
[1744113949706,0.3526734,79967.0,79966.0,0.00312523]
[1744113950405,0.3526734,79967.0,79966.0,0.00212523]
[1744113950614,0.3401684,79967.0,79966.0,0.00012523]
[1744113950815,0.0031684,79967.0,79966.0,0.00112523]
[1744113951007,0.0216734,79967.0,79966.0,0.00212523]
[1744113951208,0.0091684,79967.0,79966.0,0.00212523]
[1744113951703,0.0061684,79967.0,79966.0,0.00112523]
[1744113951903,0.0091684,79967.0,79966.0,0.00112523]
[1744113952121,0.0031684,79967.0,79966.0,0.53899487]
[1744113952298,0.0001684,79967.0,79966.0,0.96776721]
[1744113952483,0.0051684,79967.0,79966.0,0.96776721]
[1744113952919,0.0001684,79967.0,79966.0,0.96776721]
[1744113953451,0.0001684,79967.0,79966.0,0.96976721]
[1744113953656,0.0031684,79967.0,79966.0,0.96976721]
[1744113953956,0.0031684,79967.0,79966.0,0.96776721]
[1744113954079,0.0001684,79967.0,79966.0,0.97076721]
[1744113954846,0.0001684,79967.0,79966.0,0.97376721]
[1744113955401,0.0001684,79967.0,79966.0,0.97076721]
[1744113955604,0.0001684,79967.0,79966.0,0.97476721]
[1744113957215,0.0001684,79967.0,79966.0,1.96544721]
[1744113957418,0.0001684,79967.0,79966.0,2.01274721]
[1744113958428,0.0001684,79967.0,79966.0,2.00874721]
[1744113958903,0.0001684,79967.0,79966.0,2.01474721]
[1744113959485,0.0001684,79967.0,79966.0,2.10846636]
[1744113959867,0.0001684,79967.0,79966.0,2.10546636]
[1744113960234,0.0001684,79967.0,79966.0,2.11046636]
[1744113961694,0.0001684,79967.0,79966.0,1.54229536]
[1744113961870,0.0001684,79967.0,79966.0,1.70784036]
[1744113965385,0.0001684,79967.0,79966.0,1.72238121]
[1744113966076,0.0001684,79967.0,79966.0,1.76968121]
[1744113967731,4e-07,79967.0,79966.0,1.76468121]
[1744113967934,4e-07,79967.0,79966.0,1.81668121]
[1744113968233,7e-07,79972.0,79971.0,0.412594]
[1744113968449,7e-07,79972.0,79971.0,0.55339349]
[1744113968648,0.0001685,79982.0,79981.0,0.412561]
[1744113968886,0.0001685,79982.0,79981.0,1.12063198]
[1744113971364,0.0001685,79982.0,79981.0,1.12663198]
[1744113971542,0.0001685,79982.0,79981.0,1.13463198]
[1744113971936,0.0001685,79982.0,79981.0,1.12663198]
[1744113972290,0.0001685,79982.0,79981.0,1.13263198]
[1744113972490,0.0001685,79982.0,79981.0,1.12663198]
[1744113972685,0.0001685,79982.0,79981.0,1.12063198]
[1744113972896,0.0001685,79982.0,79981.0,1.12763198]
[1744113973219,0.0001685,79982.0,79981.0,1.13563198]
[1744113975180,0.0001685,79982.0,79981.0,0.97109113]
[1744113975607,0.0001685,79982.0,79981.0,0.98563198]
[1744113976742,0.0001685,79982.0,79981.0,0.97763198]
[1744113977708,0.0001685,79982.0,79981.0,0.97063198]
[1744113977926,0.0001685,79982.0,79981.0,0.97863198]
[1744113978124,0.0001685,79982.0,79981.0,0.98663198]
[1744113981518,0.0001685,79982.0,79981.0,1.13663198]
[1744113981960,0.0001685,79982.0,79981.0,0.98663198]
[1744113982170,0.0126705,79982.0,79981.0,0.43023149]
[1744113982369,0.0126705,79982.0,79981.0,0.58323149]
[1744113982909,0.3526705,79982.0,79981.0,0.169]
[1744113983108,0.3526705,79982.0,79981.0,0.016]
[1744113984146,0.0001685,79982.0,79981.0,0.14225864]
[1744113984346,0.0001685,79982.0,79981.0,0.41136049]
[1744113984572,0.0001685,79982.0,79981.0,0.14676064]
[1744113984869,0.0001685,79982.0,79981.0,0.13876064]
[1744113985068,0.0001685,79982.0,79981.0,0.14076064]
[1744113985274,0.0001685,79982.0,79981.0,0.12825864]
[1744113985526,0.0001685,79982.0,79981.0,0.38881964]
[1744113986466,0.0001685,79982.0,79981.0,0.40336049]
[1744113986666,0.0001685,79982.0,79981.0,0.81759198]
[1744113990325,0.0001685,79982.0,79981.0,0.96759198]
[1744113990938,0.0001685,79982.0,79981.0,0.95305113]
[1744113991649,0.012503,79976.0,79971.0,0.41423149]
[1744113991852,0.012503,79979.0,79972.0,0.27925864]
[1744113992048,0.26257,79979.0,79974.0,0.250081]
[1744113992254,0.250072,79977.0,79974.0,0.12625864]
[1744113992479,0.262588,79973.0,79972.0,0.153]
[1744113992966,0.012503,79975.0,79972.0,0.153]
[1744113993179,0.012503,79975.0,79973.0,0.15232]
[1744113993387,0.012504,79973.0,79971.0,0.42223149]
[1744113993629,0.012503,79975.0,79971.0,0.42223149]
[1744113993630,0.012503,79975.0,79972.0,0.15232]
[1744113993849,0.012503,79977.0,79972.0,0.15232]
[1744113994135,0.262586,79974.0,79972.0,0.15232]
[1744113994377,0.012504,79974.0,79972.0,0.15232]
[1744113994714,0.0001685,79982.0,79981.0,0.262561]
[1744113994915,0.0001685,79982.0,79981.0,0.38881964]
[1744113995060,0.0001685,79982.0,79978.0,0.15]
[1744113995261,0.0001685,79982.0,79978.0,0.52632464]
[1744113995463,0.0001685,79982.0,79978.0,0.27625864]
[1744113995464,0.2627285,79982.0,79978.0,0.27625864]
[1744113995667,0.0001685,79982.0,79978.0,0.27625864]
[1744113995871,0.0001685,79982.0,79978.0,0.52632664]
[1744113996079,0.0001685,79982.0,79981.0,0.012502]
[1744113996473,0.0001685,79982.0,79981.0,0.13876064]
[1744113997499,0.0001685,79982.0,79981.0,0.55299213]
[1744113998394,0.0001685,79982.0,79981.0,0.54049013]
[1744113998716,0.0001685,79982.0,79981.0,0.79054913]
[1744113998916,0.0001685,79982.0,79981.0,0.54049013]
[1744113999538,0.0001685,79982.0,79981.0,0.79054913]
[1744114000100,0.0001685,79982.0,79981.0,0.80305113]
[1744114000947,0.0001685,79982.0,79981.0,0.81759198]
[1744114001710,2.1e-07,79983.0,79982.0,0.01454085]
[1744114001965,2.1e-07,79983.0,79982.0,0.15580116]
[1744114002790,2.1e-07,79983.0,79982.0,0.57003265]
[1744114002989,2.1e-07,79983.0,79982.0,0.70248202]
[1744114003133,2.1e-07,79983.0,79982.0,0.85480202]
[1744114003551,2.1e-07,79983.0,79982.0,0.81655298]
[1744114003770,2.1e-07,79983.0,79982.0,0.85479107]
[1744114004205,2.1e-07,79983.0,79982.0,0.87272693]
[1744114004566,2.1e-07,79983.0,79982.0,0.83948884]
[1744114004772,2.1e-07,79983.0,79982.0,0.84848884]
[1744114004971,2.1e-07,79983.0,79982.0,1.00248884]
[1744114005275,2.1e-07,79983.0,79982.0,0.97955298]
[1744114006455,2.1e-07,79983.0,79982.0,0.72099213]
[1744114006598,2.1e-07,79983.0,79982.0,0.87331213]
[1744114006804,2.1e-07,79983.0,79982.0,0.88785298]
[1744114008833,0.01250221,79983.0,79982.0,0.71081013]
[1744114009212,0.06180221,79983.0,79982.0,0.58455149]
[1744114009421,0.06180221,79983.0,79982.0,0.17032]
[1744114010081,0.06180221,79983.0,79982.0,0.16132]
[1744114010293,2.1e-07,79983.0,79982.0,0.29108064]
[1744114010464,2.1e-07,79983.0,79982.0,0.29708064]
[1744114010643,2.1e-07,79983.0,79982.0,0.30308064]
[1744114010850,2.1e-07,79983.0,79982.0,0.29708064]
[1744114011050,0.00100021,79983.0,79982.0,0.29108064]
[1744114011449,0.01350221,79983.0,79982.0,0.15232]
[1744114012260,0.00100021,79983.0,79982.0,0.55567749]
[1744114013327,2.1e-07,79983.0,79982.0,0.55567749]
[1744114013689,2.1e-07,79983.0,79982.0,0.55967749]
[1744114013856,2.1e-07,79983.0,79982.0,0.55767749]
[1744114014052,2.1e-07,79983.0,79982.0,0.55567749]
[1744114014311,2.1e-07,79983.0,79982.0,0.55867749]